bitfinex-derivatives/quotes_SOLF0:USTF0_20241227
["timestamp","ask_amount","ask_price","bid_price","bid_amount"]
[1735311222300,2.6761,187.07,186.9,1.89094522]
[1735311222601,19.75108389,187.02,186.91,4.22]
[1735311222797,1.5926,187.01,186.85,23.99768389]
[1735311222993,1.5926,187.01,186.89,4.22]
[1735311223402,2.6775,186.98,186.91,2.6783]
[1735311223699,1.5926,187.01,186.91,2.6783]
[1735311223905,1.6724,186.97,186.9,2.6785]
[1735311224505,2.6778,186.95,186.9,2.6785]
[1735311224706,1.6724,186.97,186.89,2.6787]
[1735311225104,1.6724,186.97,186.86,4.22]
[1735311225495,2.6781,186.93,186.85,5.7774]
[1735311225704,19.75108389,186.96,186.85,5.7774]
[1735311226506,2.6779,186.94,186.88,2.6788]
[1735311227508,19.75108389,186.96,186.88,2.6788]
[1735311227509,2.6781,186.93,186.88,2.6788]
[1735311228309,19.75108389,186.96,186.8,1.0718]
[1735311228310,19.75108389,186.96,186.81,4.22]
[1735311228609,1.6614,186.92,186.81,4.22]
[1735311229307,1.6614,186.92,186.85,2.6792]
[1735311229611,1.6614,186.92,186.81,4.22]
[1735311230007,4.3397,186.92,186.85,2.6791]
[1735311230510,4.3397,186.92,186.81,4.22]
[1735311230705,1.6614,186.92,186.86,2.6791]
[1735311231010,1.6614,186.92,186.81,4.22]
[1735311231207,1.6614,186.92,186.79,19.75108389]
[1735311231403,2.6787,186.9,186.84,2.6793]
[1735311231703,1.6614,186.92,186.8,4.22]
[1735311231911,1.6614,186.92,186.81,4.22]
[1735311234006,1.6614,186.92,186.79,4.22]
[1735311234211,2.6789,186.88,186.82,2.6797]
[1735311234411,1.6614,186.92,186.79,4.22]
[1735311234812,2.6786,186.9,186.83,2.6794]
[1735311235112,1.6614,186.92,186.79,4.22]
[1735311235508,1.6614,186.92,186.81,2.6797]
[1735311236018,1.6614,186.92,186.82,2.6796]
[1735311236310,12.3916339,186.9,186.82,2.6796]
[1735311236617,12.3916339,186.9,186.8,2.6798]
[1735311236810,1.6294,186.89,186.8,2.6798]
[1735311237309,3.2161,186.89,186.8,2.6798]
[1735311237810,3.2161,186.89,186.78,5.7904]
[1735311238009,2.6794,186.84,186.78,8.4705]
[1735311238212,2.6794,186.84,186.78,5.7904]
[1735311238408,3.2161,186.89,186.78,5.7904]
[1735311238810,2.6791,186.86,186.81,2.6798]
[1735311239006,3.2161,186.89,186.78,5.7904]
[1735311239208,1.6294,186.89,186.78,5.7904]
[1735311239415,1.6294,186.89,186.84,2.6793]
[1735311240103,1.6294,186.89,186.78,7.3584]
[1735311240104,3.2035,186.92,186.78,7.3584]
[1735311240513,3.2035,186.92,186.8,12.3916339]
[1735311240709,2.6784,186.91,186.87,2.6789]
[1735311241109,1.5318,186.94,186.84,4.1]
[1735311241310,1.5318,186.94,186.85,4.1]
[1735311241510,12.3916339,186.99,186.86,12.3916339]
[1735311241812,13.9234339,186.99,186.86,13.9350339]
[1735311242010,13.9234339,186.99,186.86,15.5030339]
[1735311242715,12.3916339,186.96,186.86,1.5434]
[1735311243415,2.6781,186.93,186.88,2.6787]
[1735311244117,2.6779,186.95,186.9,2.6785]
[1735311244307,12.3916339,186.96,186.86,1.5434]
[1735311244512,13.9234339,186.99,186.86,1.5434]
[1735311245117,2.6777,186.96,186.91,2.6784]
[1735311246414,2.6775,186.97,186.92,2.6782]
[1735311246620,2.6775,186.97,186.86,15.5840339]
[1735311247419,2.6775,186.97,186.93,2.6781]
[1735311248918,2.6775,186.97,186.86,16.6533339]
[1735311249217,3.2731,187.01,186.89,12.3916339]
[1735311249617,4.3149,187.01,186.97,2.6775]
[1735311249810,12.3916339,187.03,186.93,4.1]
[1735311250114,14.0329339,187.06,186.93,4.1]
[1735311250321,14.0329339,187.06,186.99,2.6771]
[1735311250322,2.6765,187.04,186.99,2.6771]
[1735311250524,14.0329339,187.06,186.99,2.6771]
[1735311250718,12.3916339,187.03,186.89,12.3916339]
[1735311250915,12.3916339,187.0,186.9,4.1]
[1735311251115,12.3916339,187.03,186.9,4.1]
[1735311251316,2.6768,187.02,186.97,2.6774]
[1735311251517,12.3916339,187.03,186.9,4.1]
[1735311251818,14.0329339,187.06,186.92,12.3916339]
[1735311253520,2.6769,187.02,186.97,2.6774]
[1735311254915,2.6769,187.02,186.96,4.1]
[1735311255110,14.0329339,187.06,186.92,4.1]
[1735311255111,12.3916339,187.03,186.92,4.1]
[1735311255711,12.3916339,187.03,186.93,2.678]
[1735311256115,2.6774,186.99,186.93,2.678]
[1735311256317,12.3916339,187.0,186.93,2.678]
[1735311256717,12.3916339,186.97,186.88,4.1]
[1735311256920,12.3916339,186.97,186.87,1.6847]
[1735311258517,2.6778,186.96,186.9,2.6784]
[1735311258717,2.6778,186.96,186.87,1.6847]
[1735311258917,2.6778,186.96,186.91,2.6783]
[1735311259715,12.3916339,186.97,186.87,1.6847]
[1735311259919,15.0692339,186.97,186.87,1.6847]
[1735311260125,42.02158319,187.15,186.9,12.3916339]
[1735311260322,12.3916339,187.04,186.9,12.3916339]
[1735311260524,12.3916339,187.04,186.94,2.6779]
[1735311260824,12.3916339,187.01,186.92,4.1]
[1735311261027,2.6775,186.98,186.92,6.7781]
[1735311261727,2.6775,186.98,186.93,2.678]
[1735311262728,2.6776,186.97,186.92,6.7782]
[1735311263022,12.3916339,187.01,186.92,4.1]
[1735311263428,2.6773,186.99,186.92,4.1]
[1735311263620,12.3916339,187.01,186.92,4.1]
[1735311263924,12.3916339,187.01,186.91,2.6784]
[1735311264923,12.3916339,187.01,186.92,2.6781]
[1735311265521,12.3916339,187.01,186.91,2.6784]
[1735311265926,2.6778,186.95,186.91,2.6784]
[1735311266125,12.3916339,186.98,186.9,2.6785]
[1735311266332,1.6851,186.97,186.88,4.02]
[1735311266731,1.6851,186.97,186.86,4.02]
[1735311266732,12.3916339,186.95,186.86,4.02]
[1735311267123,2.6784,186.91,186.86,4.02]
[1735311267329,12.3916339,186.95,186.86,2.6791]
[1735311267522,2.6785,186.91,186.86,2.6791]
[1735311268026,12.3916339,186.95,186.86,2.6791]
[1735311268233,12.3916339,186.95,186.84,4.02]
[1735311268732,2.6785,186.91,186.84,4.02]
[1735311269933,2.6785,186.91,186.86,2.679]
[1735311270129,2.6788,186.89,186.84,4.02]
[1735311270335,12.3916339,186.92,186.82,1.5998]
[1735311270533,12.3916339,186.92,186.83,2.6795]
[1735311270833,2.6786,186.9,186.83,2.6795]
[1735311271034,12.3916339,186.92,186.84,2.6794]
[1735311271438,12.3916339,186.92,186.85,2.6792]
[1735311272435,2.6785,186.9,186.85,2.6792]
[1735311272636,12.3916339,186.92,186.84,2.6794]
[1735311274438,2.6788,186.89,186.85,2.6792]
[1735311275146,2.6788,186.89,186.82,5.6198]
[1735311275337,2.6788,186.89,186.84,2.6794]
[1735311275834,12.3916339,186.92,186.85,2.6792]
[1735311275835,2.6785,186.9,186.85,2.6792]
[1735311276035,12.3916339,186.92,186.85,2.6792]
[1735311276536,2.6788,186.88,186.84,2.6794]
[1735311276735,2.6788,186.88,186.82,5.6198]
[1735311276938,12.3916339,186.92,186.82,5.6198]
[1735311277235,12.3916339,186.95,186.82,5.6198]
[1735311278039,12.3916339,186.92,186.82,5.6198]
[1735311278938,12.3916339,186.92,186.84,2.6794]
[1735311279135,12.3916339,186.92,186.82,5.6198]
[1735311279733,12.3916339,186.92,186.82,1.5998]
[1735311279933,2.6789,186.88,186.83,2.6795]
[1735311280734,12.3916339,186.92,186.82,1.5998]
[1735311280935,2.6786,186.9,186.86,2.6791]
[1735311283532,17.51337668,186.99,186.89,24.7832678]
[1735311283739,145.01763581,187.02,186.98,12.3916339]
[1735311283940,145.01763581,187.02,186.98,4.02]
[1735311284540,12.3916339,187.09,186.99,2.6772]
[1735311284541,2.676,187.08,186.99,2.6772]
[1735311285341,19.6962339,187.12,187.03,2.6766]
[1735311286135,7.3046,187.12,187.03,2.6766]
[1735311286538,4.6292,187.12,187.01,2.6769]
[1735311286735,2.6757,187.1,187.01,2.6769]
[1735311288039,2.6757,187.1,187.0,12.3916339]
[1735311288040,17.0208339,187.12,187.0,12.3916339]
[1735311288238,17.0208339,187.12,187.03,2.6766]
[1735311289434,2.6755,187.11,187.03,2.6766]
[1735311289738,17.0208339,187.12,187.01,2.6768]
[1735311290643,2.6758,187.09,187.01,2.6768]
[1735311290944,17.0208339,187.12,186.98,4.02]
[1735311291139,12.3916339,187.09,186.96,12.3916339]
[1735311291440,2.6764,187.05,186.98,2.6773]
[1735311291641,12.3916339,187.09,186.98,2.6773]
[1735311291841,17.0208339,187.12,186.99,12.3916339]
[1735311292240,17.0208339,187.12,187.02,2.6768]
[1735311293537,2.6757,187.1,187.02,2.6768]
[1735311294533,19.6963339,187.12,187.03,2.6766]
[1735311294740,7.3047,187.12,187.02,12.3916339]
[1735311295139,4.6292,187.12,187.06,2.6762]
[1735311297545,7.3046,187.12,187.06,2.6762]
[1735311298646,4.6292,187.12,187.06,12.3916339]
[1735311299237,4.6292,187.12,187.09,2.6758]
[1735311299438,4.6292,187.12,187.06,12.3916339]
[1735311299845,4.6292,187.12,187.1,2.6756]
[1735311300738,4.6292,187.12,187.06,12.3916339]
[1735311300947,4.6292,187.12,187.11,2.6755]
[1735311302141,4.6292,187.12,187.09,12.3916339]
[1735311302444,4.6292,187.12,187.06,3.96]
[1735311302650,4.6292,187.12,187.06,8.70333814]
[1735311302845,4.6292,187.12,187.09,2.6757]
[1735311303346,4.6292,187.12,187.08,12.3916339]
[1735311303540,4.6292,187.12,187.11,2.6755]
[1735311304648,3.1445,187.19,187.11,2.6755]
[1735311306046,3.1445,187.19,187.08,12.3916339]
[1735311306047,2.6748,187.16,187.08,12.3916339]
[1735311306246,15.5361339,187.19,187.08,12.3916339]
[1735311307552,2.6748,187.16,187.08,12.3916339]
[1735311308551,2.6748,187.16,187.11,2.6755]
[1735311308855,15.5361339,187.19,187.08,12.3916339]
[1735311309452,3.1445,187.19,187.08,12.3916339]
[1735311309657,5.819,187.19,187.12,2.6753]
[1735311309859,3.1445,187.19,187.12,2.6753]
[1735311311151,15.5361339,187.19,187.06,3.96]
[1735311311355,15.5361339,187.19,187.06,45.85784043]
[1735311311653,2.6749,187.16,187.08,2.6759]
[1735311311852,1.6094,187.15,187.08,2.6759]
[1735311312255,2.6752,187.14,187.09,2.6758]
[1735311313051,3.1445,187.19,187.09,12.3916339]
[1735311313452,3.1445,187.19,187.12,12.3916339]
[1735311314252,1.5871,187.24,187.12,12.3916339]
[1735311314452,3.2897,187.23,187.15,12.3916339]
[1735311314857,3.2897,187.23,187.18,2.6745]
[1735311315856,3.2897,187.23,187.19,2.6743]
[1735311316062,3.2897,187.23,187.16,4.73081419]
[1735311316258,3.2897,187.23,187.18,12.3916339]
[1735311316663,3.96,187.3,187.18,12.3916339]
[1735311316862,3.1789,187.29,187.18,12.3916339]
[1735311317053,3.1789,187.29,187.19,4.73104138]
[1735311317259,3.1789,187.29,187.18,12.3916339]
[1735311317465,3.1789,187.29,187.19,4.73233298]
[1735311317762,3.1789,187.29,187.21,12.3916339]
[1735311317961,5.8519,187.29,187.23,2.6737]
[1735311318161,3.1789,187.29,187.23,2.6737]
[1735311318563,3.1789,187.29,187.21,7.38017557]
[1735311318958,1.5785,187.28,187.21,7.38017557]
[1735311319159,2.6734,187.26,187.21,7.38017557]
[1735311319362,12.3916339,187.27,187.21,7.38017557]
[1735311319661,1.5785,187.28,187.22,4.72385599]
[1735311320351,1.5785,187.28,187.25,2.6735]
[1735311320558,1.5785,187.28,187.23,16.84460854]
[1735311320758,15.6178339,187.36,187.24,4.74058907]
[1735311320962,15.6178339,187.36,187.25,4.74058907]
[1735311321157,2.6723,187.34,187.27,2.6731]
[1735311321357,2.6723,187.34,187.27,10.05327557]
[1735311321554,15.6178339,187.36,187.27,10.05327557]
[1735311321962,2.6724,187.33,187.28,2.6731]
[1735311322563,2.6721,187.35,187.3,2.6728]
[1735311322756,3.2262,187.36,187.28,53.15200106]
[1735311322960,3.2262,187.36,187.29,4.74532228]
[1735311323157,5.8982,187.36,187.3,7.41812228]
[1735311323362,3.2262,187.36,187.31,4.74532228]
[1735311323558,3.2262,187.36,187.32,4.74532228]
[1735311323762,3.2262,187.36,187.33,4.74830506]
[1735311323964,3.2262,187.36,187.31,29.5207023]
[1735311324262,15.6178339,187.36,187.31,29.5207023]
[1735311324663,2.6724,187.34,187.31,29.5207023]
[1735311324863,15.6178339,187.36,187.3,29.5207023]
[1735311325263,2.6723,187.34,187.3,29.5207023]
[1735311325663,15.6178339,187.36,187.3,29.5207023]
[1735311325865,15.6178339,187.36,187.28,2.673]
[1735311326062,15.6178339,187.36,187.29,4.74296184]
[1735311326261,15.6178339,187.36,187.28,2.673]
[1735311326262,15.6178339,187.36,187.3,4.74293211]
[1735311326462,15.6178339,187.36,187.28,2.673]
[1735311326659,2.6722,187.34,187.29,4.74087684]
[1735311326968,15.6178339,187.36,187.3,4.74087684]
[1735311327162,15.6178339,187.36,187.31,4.74087684]
[1735311327358,15.6178339,187.36,187.29,2.6728]
[1735311327669,3.2262,187.36,187.27,60.27604177]
[1735311327968,3.2262,187.36,187.3,16.9819635]
[1735311328168,2.6714,187.41,187.3,20.8219635]
[1735311328368,4.2928,187.41,187.3,20.8219635]
[1735311328566,4.2928,187.41,187.31,8.9108134]
[1735311328863,4.2928,187.41,187.34,2.6722]
[1735311329266,4.2928,187.41,187.35,7.41179717]
[1735311329562,4.2928,187.41,187.35,2.6721]
[1735311329762,1.6214,187.41,187.33,29.5207023]
[1735311329969,1.6214,187.41,187.36,2.6719]
[1735311330268,1.6214,187.41,187.33,29.5207023]
[1735311330466,1.6214,187.41,187.34,4.73200865]
[1735311330666,1.6214,187.41,187.35,4.73200865]
[1735311330866,1.6214,187.41,187.36,4.73202774]
[1735311331064,1.6214,187.41,187.34,7.38017557]
[1735311331368,1.6214,187.41,187.35,4.73204781]
[1735311331668,12.3916339,187.45,187.36,4.73204781]
[1735311331872,2.6709,187.44,187.38,2.6716]
[1735311332771,3.2747,187.46,187.37,7.38017557]
[1735311332970,3.2747,187.46,187.38,4.7235673]
[1735311333275,3.2747,187.46,187.42,2.671]
[1735311334169,3.2747,187.46,187.4,12.09920926]
[1735311334369,3.2747,187.46,187.4,7.38017557]
[1735311334570,12.3916339,187.45,187.4,7.38017557]
[1735311334769,2.6711,187.42,187.4,7.38017557]
[1735311334963,2.6711,187.42,187.38,7.38017557]
[1735311335170,12.3916339,187.45,187.38,7.38017557]
[1735311335373,8.31148463,187.42,187.37,40.40480836]
[1735311335574,12.3916339,187.39,187.37,27.65030836]
[1735311335765,12.3916339,187.39,187.37,8.21420837]
[1735311335965,12.3916339,187.39,187.33,7.32871411]
[1735311336970,2.6724,187.34,187.28,2.673]
[1735311337473,12.3916339,187.36,187.28,2.673]
[1735311338576,2.6724,187.33,187.28,2.673]
[1735311338871,12.3916339,187.36,187.27,1.6001]
[1735311339867,2.6723,187.34,187.29,2.6729]
[1735311341675,12.3916339,187.36,187.26,1.5469]
[1735311341867,12.3916339,187.33,187.26,1.5469]
[1735311342267,16.2316339,187.38,187.23,4.72529775]
[1735311342268,12.3916339,187.3,187.23,4.72529775]
[1735311342471,12.3916339,187.27,187.18,1.6167]
[1735311342667,12.3916339,187.27,187.18,6.34924902]
[1735311342875,2.6736,187.25,187.18,6.34924902]
[1735311343067,12.3916339,187.27,187.18,1.6167]
[1735311343267,12.3916339,187.24,187.17,1.6394]
[1735311343474,2.674,187.22,187.17,1.6394]
[1735311343776,12.3916339,187.24,187.17,1.6394]
[1735311344174,19.75141219,187.27,187.17,1.6394]
[1735311344378,2.6737,187.24,187.18,2.6745]
[1735311344580,19.75141219,187.27,187.17,1.6394]
[1735311344878,2.6737,187.24,187.17,1.6394]
[1735311345078,19.75141219,187.27,187.17,6.37635226]
[1735311345283,19.75141219,187.27,187.17,1.6394]
[1735311345582,2.6735,187.25,187.17,4.3139]
[1735311345781,2.6735,187.25,187.17,1.6394]
[1735311346578,2.6735,187.25,187.18,4.73828886]
[1735311346780,2.6735,187.25,187.17,1.6394]
[1735311346983,2.6733,187.27,187.21,2.6741]
[1735311347384,3.84,187.28,187.18,4.73821393]
[1735311347583,2.6734,187.26,187.2,2.6742]
[1735311348479,19.75141219,187.3,187.17,1.6394]
[1735311348685,3.84,187.29,187.18,4.74124512]
[1735311348990,3.84,187.3,187.19,4.74124512]
[1735311349183,3.84,187.3,187.2,4.74068306]
[1735311349389,23.59141219,187.3,187.17,1.6394]
[1735311349586,2.6736,187.25,187.18,2.6744]
[1735311349782,23.59141219,187.3,187.18,2.6744]
[1735311349986,23.59141219,187.3,187.17,1.6394]
[1735311350188,23.59141219,187.3,187.18,4.74234387]
[1735311350487,23.59141219,187.3,187.17,1.6394]
[1735311350693,23.59141219,187.3,187.18,4.74332369]
[1735311350890,2.6735,187.26,187.2,2.6742]
[1735311351293,23.59141219,187.3,187.17,1.6394]
[1735311351488,23.59141219,187.3,187.19,2.6744]
[1735311351688,3.84,187.29,187.19,2.6744]
[1735311352091,3.84,187.29,187.17,4.314]
[1735311352284,3.84,187.29,187.17,1.6394]
[1735311354288,2.6737,187.25,187.17,1.6394]
[1735311354493,3.84,187.29,187.17,1.6394]
[1735311354895,3.84,187.29,187.21,2.6741]
[1735311355096,19.75141219,187.38,187.18,4.74982435]
[1735311355097,19.75141219,187.34,187.18,4.74982435]
[1735311355288,19.75141219,187.34,187.19,12.74916831]
[1735311355489,2.6725,187.32,187.27,2.6732]
[1735311355694,23.57141219,187.34,187.2,8.92963634]
[1735311355892,23.57141219,187.34,187.21,4.75001664]
[1735311356096,2.6728,187.3,187.24,2.6735]
[1735311356302,2.6728,187.3,187.22,1.5853]
[1735311356495,2.6728,187.3,187.23,4.75259207]
[1735311356696,2.6728,187.3,187.22,1.5853]
[1735311356897,2.6728,187.3,187.23,4.7527038]
[1735311357097,2.6726,187.32,187.27,2.6732]
[1735311357690,2.6726,187.32,187.25,2.6734]
[1735311358100,2.6727,187.31,187.25,2.6734]
[1735311358405,2.6727,187.31,187.24,2.6736]
[1735311358598,2.6727,187.31,187.22,1.5853]
[1735311358795,2.6727,187.31,187.23,4.75744565]
[1735311358996,3.82,187.35,187.24,4.75744565]
[1735311359296,19.75141219,187.31,187.19,4.18613963]
[1735311359501,19.75141219,187.31,187.18,4.18613963]
[1735311359698,19.75141219,187.31,187.19,4.75929479]
[1735311359897,19.75141219,187.28,187.17,7.37455359]
[1735311360199,3.82,187.27,187.17,3.1868]
[1735311360606,3.82,187.27,187.18,4.75992082]
[1735311360906,2.6738,187.23,187.18,2.6745]
[1735311361200,3.82,187.27,187.17,3.1868]
[1735311362196,2.6738,187.24,187.19,2.6743]
[1735311362600,2.6738,187.24,187.17,3.1868]
[1735311362906,2.6735,187.26,187.17,3.1868]
[1735311363099,19.75141219,187.28,187.17,3.1868]
[1735311363299,3.82,187.27,187.18,4.75891354]
[1735311363501,2.6734,187.26,187.19,4.75891354]
[1735311363696,3.82,187.27,187.17,7.374367]
[1735311364005,2.6734,187.26,187.18,4.75802462]
[1735311364205,2.6734,187.26,187.19,4.75802462]
[1735311364404,19.75141219,187.31,187.17,7.374367]
[1735311364707,2.6728,187.3,187.25,2.6735]
[1735311364906,3.82,187.31,187.17,3.1868]
[1735311365102,3.82,187.31,187.26,2.6732]
[1735311365506,3.82,187.31,187.2,3.82]
[1735311365805,3.82,187.31,187.21,4.7571501]
[1735311365806,23.57141219,187.31,187.21,4.7571501]
[1735311366006,23.57141219,187.31,187.19,4.75808121]
[1735311366204,12.34088986,187.28,187.17,7.37266046]
[1735311366505,16.16088986,187.31,187.18,21.28436679]
[1735311366801,16.16088986,187.31,187.19,8.94347693]
[1735311367011,2.673,187.29,187.2,4.75741678]
[1735311367200,16.16088986,187.31,187.21,4.75711707]
[1735311367502,3.82,187.31,187.24,2.6736]
[1735311367706,3.82,187.31,187.22,4.18606015]
[1735311367909,3.82,187.31,187.23,4.75632987]
[1735311368103,3.82,187.31,187.28,2.673]
[1735311368511,2.6724,187.33,187.28,2.673]
[1735311369003,2.672,187.36,187.3,2.6727]
[1735311369204,16.16088986,187.38,187.3,2.6727]
[1735311369600,2.672,187.36,187.31,2.6727]
[1735311370210,2.6719,187.37,187.3,2.6728]
[1735311370402,2.6719,187.37,187.28,4.75617332]
[1735311370602,12.34088986,187.47,187.29,4.75567854]
[1735311370603,16.16088986,187.41,187.29,4.75567854]
[1735311370803,16.16088986,187.41,187.3,17.09650162]
[1735311370804,12.34088986,187.41,187.3,17.09650162]
[1735311371101,12.34088986,187.41,187.31,4.75561176]
[1735311371306,12.34088986,187.41,187.3,12.34088986]
[1735311371506,12.34088986,187.41,187.31,4.754333]
[1735311371810,12.34088986,187.41,187.32,4.75430435]
[1735311372110,15.01208986,187.41,187.36,2.6719]
[1735311372905,12.34088986,187.41,187.32,4.75393445]
[1735311373105,12.34088986,187.41,187.31,8.93714916]
[1735311373309,12.34088986,187.41,187.32,4.75393445]
[1735311373505,12.34088986,187.41,187.31,4.75393445]
[1735311373711,12.34088986,187.41,187.35,2.672]
[1735311373712,2.6714,187.4,187.35,2.672]
[1735311374107,16.16088986,187.44,187.32,4.75393445]
[1735311374506,2.6712,187.41,187.34,2.6722]
[1735311374709,2.6712,187.41,187.31,8.93632083]
[1735311374910,2.6712,187.41,187.31,4.75349535]
[1735311375208,2.6711,187.43,187.37,2.6718]
[1735311375608,12.34088986,187.44,187.39,2.6715]
[1735311375816,2.6707,187.46,187.34,5.4108]
[1735311376008,2.6707,187.46,187.35,8.03705016]
[1735311376512,12.34088986,187.47,187.42,2.671]
[1735311377108,12.34088986,187.47,187.4,2.6713]
[1735311377710,2.6706,187.46,187.4,2.6713]
[1735311378010,12.34088986,187.47,187.35,7.46553202]
[1735311378011,12.34088986,187.44,187.35,3.2838]
[1735311378215,12.34088986,187.44,187.35,8.03502802]
[1735311378415,12.34088986,187.44,187.36,4.75122802]
[1735311378416,15.01168986,187.44,187.36,4.75122802]
[1735311378712,15.01168986,187.44,187.38,2.6717]
[1735311379106,57.69953935,187.63,187.36,4.75359502]
[1735311379306,12.34088986,187.56,187.37,4.18178959]
[1735311379612,12.34088986,187.56,187.42,12.34088986]
[1735311379813,12.34088986,187.56,187.43,3.82]
[1735311380416,2.6698,187.52,187.45,2.6705]
[1735311380815,12.34088986,187.56,187.43,3.82]
[1735311381110,2.6695,187.54,187.47,2.6703]
[1735311381321,2.6695,187.54,187.43,3.82]
[1735311381906,2.6695,187.54,187.47,2.6702]
[1735311382311,2.6696,187.53,187.47,2.6702]
[1735311383317,19.68753279,187.57,187.43,3.82]
[1735311383616,3.8,187.59,187.35,19.68753279]
[1735311383617,19.68753279,187.51,187.35,19.68753279]
[1735311383822,19.68753279,187.51,187.36,12.71316095]
[1735311384117,19.68753279,187.51,187.37,4.74045668]
[1735311384118,2.6707,187.45,187.37,4.74045668]
[1735311384321,2.6707,187.45,187.36,10.14248337]
[1735311384525,2.6708,187.44,187.37,2.6717]
[1735311384719,19.68753279,187.48,187.36,1.6018]
[1735311385817,2.6705,187.47,187.41,2.6712]
[1735311386017,3.3374,187.5,187.37,4.74001024]
[1735311386219,19.68753279,187.54,187.38,19.68753279]
[1735311386421,19.68753279,187.54,187.44,2.6708]
[1735311386422,2.6699,187.51,187.44,2.6708]
[1735311386623,2.6699,187.51,187.41,3.8]
[1735311386921,2.6699,187.51,187.44,2.6707]
[1735311388023,2.6701,187.5,187.44,2.6707]
[1735311388322,19.68753279,187.54,187.44,2.6707]
[1735311389522,2.6701,187.5,187.44,2.6707]
[1735311390020,19.68753279,187.54,187.39,4.74001024]
[1735311390225,19.68753279,187.51,187.39,4.74001024]
[1735311390427,3.8,187.5,187.36,5.4018]
[1735311390621,2.6707,187.45,187.4,2.6714]
[1735311391624,3.8,187.5,187.37,3.8]
[1735311391823,23.48753279,187.54,187.38,4.73066545]
[1735311392017,23.48753279,187.54,187.38,4.16252672]
[1735311392214,23.48753279,187.54,187.38,4.73024836]
[1735311392418,2.6701,187.5,187.44,2.6708]
[1735311393429,2.6701,187.49,187.44,2.6708]
[1735311393622,23.48753279,187.54,187.38,8.89160394]
[1735311393824,23.48753279,187.54,187.39,3.8]
[1735311394024,2.6702,187.49,187.39,3.8]
[1735311394227,23.48753279,187.54,187.46,2.6705]
[1735311394626,3.8,187.54,187.4,4.72962197]
[1735311394818,3.8,187.54,187.46,2.6704]
[1735311395020,3.8,187.54,187.41,3.3167]
[1735311395218,2.6697,187.52,187.41,3.3167]
[1735311395426,3.4316,187.55,187.48,2.6702]
[1735311395620,2.6696,187.53,187.48,2.6702]
[1735311396124,3.3154,187.55,187.49,2.6701]
[1735311396526,3.8,187.59,187.45,3.8]
[1735311396728,2.6691,187.56,187.46,1.6602]
[1735311397624,2.6694,187.54,187.49,2.6701]
[1735311397828,3.8,187.59,187.49,2.6701]
[1735311398125,2.6692,187.56,187.5,2.6699]
[1735311398329,19.68753279,187.6,187.46,1.6602]
[1735311398727,19.68753279,187.6,187.46,6.38982197]
[1735311399028,2.6687,187.59,187.52,2.6696]
[1735311399224,19.68753279,187.61,187.52,2.6696]
[1735311399430,19.68753279,187.61,187.51,3.8]
[1735311400427,2.6687,187.59,187.47,4.72995235]
[1735311400633,2.6687,187.59,187.5,3.8]
[1735311401133,2.6687,187.59,187.52,2.6695]
[1735311401324,2.6688,187.58,187.52,2.6695]
[1735311401829,19.68753279,187.61,187.5,3.8]
[1735311401830,19.68753279,187.61,187.5,6.4699]
[1735311402025,19.68753279,187.58,187.46,1.6602]
[1735311402233,12.30367232,187.56,187.47,7.39812092]
[1735311402831,14.97277232,187.56,187.5,2.6699]
[1735311403232,12.30367232,187.56,187.47,4.72792092]
[1735311403424,12.30367232,187.59,187.48,4.72707704]
[1735311403732,12.30367232,187.59,187.49,2.67]
[1735311403733,2.6689,187.58,187.49,2.67]
[1735311403934,2.6689,187.58,187.47,4.72744673]
[1735311404132,2.6689,187.58,187.46,13.96387232]
[1735311404133,2.6689,187.58,187.48,4.72744673]
[1735311404330,2.6689,187.58,187.49,4.72665129]
[1735311404534,2.6689,187.58,187.48,4.72828869]
[1735311404836,2.6689,187.58,187.49,4.72837418]
[1735311405022,2.6689,187.58,187.52,2.6697]
[1735311405326,2.6691,187.56,187.46,13.96387232]
[1735311405527,2.6691,187.56,187.47,4.7280908]
[1735311406128,2.6691,187.56,187.49,2.67]